Cogmind - Beta 15 @@@ ROGUE MODE // 2025.06.20 @ 03:23:23 Player: Peregrine Result: Destroyed by Y-45 Defender with Beam Rifle Performance ------------- Evolutions (2) 1000 Regions Visited (4) 800 Robots Destroyed (0) 0 Value Destroyed (0) 0 Prototype IDs (0) 0 Alien Tech Used (0) 0 Bonus (571) 571 TOTAL SCORE: 2371 Bonus ------- Pacifist 470 Follower Combat Kills 101 Cogmind --------- Core Integrity 0/550 Matter 285/300 Energy 99/100 System Corruption 3% Temperature Cool (9) Movement Core (50) Location -8/Storage Parts ------- > --- POWER (1) -------- (None) > --- PROPULSION (2) --- (None) > --- UTILITY (6) ------ (None) > --- WEAPON (2) ------- (None) > --- INVENTORY (5) ---- ECM Suite Small Laser Assault Rifle Peak State ------------ > --- POWER ------------ Light Ion Engine > --- PROPULSION ------- Aluminum Leg > --- UTILITY ---------- Small Storage Unit > --- WEAPON ----------- EM Pulse Gun Assault Rifle > --- INVENTORY -------- Light Ion Engine Light Treads Light Treads Compact Wheel Compact Wheel Small Laser [Rating: 5] Favorites ----------- Power Light Ion Engine Engine Light Ion Engine Propulsion Aluminum Leg Leg Aluminum Leg Utility ECM Suite Device ECM Suite Storage Small Storage Unit Hackware System Shield Weapon Assault Rifle Energy Gun EM Pulse Gun Ballistic Gun Assault Rifle Build | -11 -10 -9 -8 -8 ------- Run | Yrd Mat Mat Mat Sto Slots Evolved 4 | . . 2 2 . Power . | . . . . . Propulsion . | . . . . . Utility 4 | . . 2 2 . Weapon . | . . . . . Parts Attached 3 | . 1 . 1 1 Power 1 | . . . 1 . Engine 1 | . . . 1 . Core . | . . . . . Reactor . | . . . . . Propulsion . | . . . . . Treads . | . . . . . Leg . | . . . . . Wheel . | . . . . . Hover . | . . . . . Flight . | . . . . . Utility 2 | . 1 . . 1 Device 1 | . 1 . . . Storage . | . . . . . Processor . | . . . . . Hackware 1 | . . . . 1 Protection . | . . . . . Artifact . | . . . . . Weapon . | . . . . . Energy Gun . | . . . . . Energy Cannon . | . . . . . Ballistic Gun . | . . . . . Ballistic Cannon . | . . . . . Launcher . | . . . . . Special Weapon . | . . . . . Impact Weapon . | . . . . . Slashing Weapon . | . . . . . Piercing Weapon . | . . . . . Special Melee Weapon . | . . . . . Unidentified Prototypes . | . . . . . Parts Lost 3 | . . 1 . 2 Power 2 | . . 1 . 1 Propulsion . | . . . . . Utility 1 | . . . . 1 Weapon . | . . . . . Highest Loss Streak 2 | . . 1 . 2 To Critical Strikes . | . . . . . Average Backups 3 | 6 3 4 3 3 Power . | 1 1 1 . . Propulsion . | 4 . . . . Utility . | . . 1 1 1 Weapon 1 | 1 2 2 2 2 Tool/Special . | . . . . . Unused Backups 4 | . 1 1 . 2 Power 2 | . 1 1 . . Propulsion . | . . . . . Utility . | . . . . . Weapon 2 | . . . . 2 Tool/Special . | . . . . . Average Slot Usage (%) 12 | . 24 4 3 4 Engine 7 | . 14 4 3 3 Device 4 | . 10 . . . Peak Build Rating 5 | 5 2 1 1 4 Average Rating 1 | 3 1 . . . On Entrance 1 | 6 1 1 . 1 Naked Turns 114 | . . 49 6 59 Heaviest Build 5 | 3 5 3 3 3 Greatest Support 3 | 3 3 3 3 3 Greatest Overweight (x) 1 | . 1 . . . Average Overweight (x) . | . . . . . Largest Inventory Capacity 8 | 8 5 5 5 5 Average Capacity 5 | 8 5 5 5 5 Most Carried 6 | 6 4 4 4 4 Average Carried 3 | 4 3 4 3 3 Final Capacity 5 | 5 5 5 5 5 Final Carried 4 | 3 4 4 3 3 Class Distribution -------------------- 93% | Mutant 6% | Commander-Mutant Dominant Class ---------------- Mutant | -10/Materials Mutant | -9/Materials Mutant | -8/Materials Mutant | -8/Storage Resources | -11 -10 -9 -8 -8 ----------- Run | Yrd Mat Mat Mat Sto Matter Collected 200 | 200 . . . . Remotely . | . . . . . Salvage Created . | . . . . . Parts . | . . . . . Haulers Intercepted . | . . . . . Recyclers Shooed . | . . . . . Parts Field Recycled . | . . . . . Retrieved Matter . | . . . . . Parts Self-Destructed . | . . . . . Prevented . | . . . . . Kills | -11 -10 -9 -8 -8 ------- Run | Yrd Mat Mat Mat Sto Combat Hostiles Destroyed . | . . . . . Classes Destroyed . | . . . . . Best Kill Streak . | . . . . . Combat Bots Only . | . . . . . Max Kills in Single Turn . | . . . . . Gunslinging . | . . . . . Exploded . | . . . . . Melee . | . . . . . Uniques/NPCs Destroyed . | . . . . . Combat | -11 -10 -9 -8 -8 -------- Run | Yrd Mat Mat Mat Sto Hostile Shots Fired 62 | . 5 22 6 29 Missed 17 | . 2 6 3 6 Hits 45 | . 3 16 3 23 Melee 4 | . . . . 4 Projectile 41 | . 3 16 3 19 AOE 8 | . . . . 8 Critical Strikes 1 | . . . . 1 Damage Taken 889 | . 33 255 45 556 Core 811 | . 23 232 14 542 Absorbed by Shields 8 | . . . . 8 Core Remaining (%) 77 | 100 90 42 . . Volleys Fired . | . . . . . Largest . | . . . . . Hottest . | . . . . . Shots Fired . | . . . . . Gun . | . . . . . Cannon . | . . . . . Launcher . | . . . . . Special . | . . . . . Kinetic . | . . . . . Thermal . | . . . . . Explosive . | . . . . . Electromagnetic . | . . . . . Robot Hit Streak . | . . . . . Robot Miss Streak . | . . . . . Penetration Max . | . . . . . Secondary Targets . | . . . . . Shots Hit Robots . | . . . . . Core Hits 1 | . . . . 1 Critical Kills . | . . . . . Critical Parts Destroyed . | . . . . . Critical Strikes . | . . . . . Melee Attacks . | . . . . . Impact . | . . . . . Slashing . | . . . . . Piercing . | . . . . . Sneak Attacks . | . . . . . Combat Hostiles . | . . . . . Follow-up Attacks . | . . . . . Damage Inflicted 10 | . . . . 10 Guns . | . . . . . Cannons . | . . . . . Explosions . | . . . . . Melee . | . . . . . Ramming 10 | . . . . 10 Kinetic . | . . . . . Thermal . | . . . . . Explosive . | . . . . . Electromagnetic . | . . . . . Impact . | . . . . . Slashing . | . . . . . Piercing . | . . . . . Highest Corruption 3 | . . . . 3 Average Corruption 3 | . . . . 3 Corruption Purged . | . . . . . Corruption Blocked . | . . . . . Effects 2 | . . . . 2 Heat Flow Errors 1 | . . . . 1 Data Loss (minor) 1 | . . . . 1 Overload Shots . | . . . . . Overflow Damage . | . . . . . Projectiles . | . . . . . Explosions . | . . . . . Melee . | . . . . . Knockbacks . | . . . . . Impact . | . . . . . Kinetic . | . . . . . Secondary . | . . . . . Self-Inflicted Damage 5 | . . . . 5 Shots . | . . . . . Rammed 2 | . . . . 2 Targets Rammed 2 | . . . . 2 Kicked . | . . . . . Crushed . | . . . . . Highest Temperature 131 | . . . . 131 Average Temperature 69 | . . . . 69 Received Heat Transfer 256 | . 18 99 18 121 Siege Activations . | . . . . . Martial Activations . | . . . . . Shielding Activations . | . . . . . Robots Disrupted . | . . . . . Combat Hostiles . | . . . . . Robots Corrupted . | . . . . . Combat Hostiles . | . . . . . Parts Fried . | . . . . . Impact Corruptions . | . . . . . Robots Melted . | . . . . . Combat Hostiles . | . . . . . Parts Melted . | . . . . . Heat Transferred . | . . . . . Parts Sabotaged . | . . . . . Parts Stolen . | . . . . . Parts Stripped . | . . . . . Power Chain Reactions . | . . . . . Alert | -11 -10 -9 -8 -8 ------- Run | Yrd Mat Mat Mat Sto Maximum Alert Level . | . . . . . Low Security (%) 100 | 100 100 100 100 100 Level 1 . | . . . . . Level 2 . | . . . . . Level 3 . | . . . . . Level 4 . | . . . . . Level 5 . | . . . . . High Security . | . . . . . Max Security . | . . . . . Peak Influence 115 | . . 6 . 115 Initial . | . . . . . Average 6 | . . . . 25 Influence Increases 161 | . . 6 . 155 Destroy 0b10 Robot/C 60 | . . . . 60 Destroy Leader 20 | . . . . 20 Allied During Kill 49 | . . . . 49 Successful Hack 17 | . . 6 . 11 Partial Spotted 15 | . . . . 15 Influence Decreases 116 | . . 6 . 110 Time Decay 36 | . . 6 . 30 Lost Ally 80 | . . . . 80 Squads Dispatched 1 | . . 1 . . Investigation . | . . . . . Extermination . | . . . . . Reinforcement 1 | . . 1 . . Assault . | . . . . . Garrison . | . . . . . Intercept . | . . . . . Searches Triggered . | . . . . . Construction Impeded . | . . . . . Haulers Reinforced . | . . . . . Active Scanning Responses . | . . . . . Cargo Convoy Interrupts . | . . . . . Stealth | -11 -10 -9 -8 -8 --------- Run | Yrd Mat Mat Mat Sto Distress Signals 2 | . . 1 . 1 Communications Jammed . | . . . . . Distress Signals . | . . . . . Times Spotted 33 | . 3 10 1 19 Peak Tracking Total 10 | . 2 8 1 10 Tactical Retreats 1 | . . . . 1 Traps | -11 -10 -9 -8 -8 ------- Run | Yrd Mat Mat Mat Sto Traps Triggered 3 | . . 1 . 2 Indirectly . | . . . . . Trap Hack Attempts . | . . . . . Triggered . | . . . . . Disarmed . | . . . . . Reprogrammed . | . . . . . Reused . | . . . . . Traps Extracted . | . . . . . Installed . | . . . . . Triggered . | . . . . . Machines | -11 -10 -9 -8 -8 ---------- Run | Yrd Mat Mat Mat Sto Machines Disabled . | . . . . . Max in Single Turn . | . . . . . Machines Repaired . | . . . . . Machines Dismantled . | . . . . . Machines Sabotaged . | . . . . . Overloaded Fab Kills . | . . . . . Hacking | -11 -10 -9 -8 -8 --------- Run | Yrd Mat Mat Mat Sto Machines Accessed 5 | . . 2 . 3 Terminals 5 | . . 2 . 3 Fabricators . | . . . . . Repair Stations . | . . . . . Recycling Units . | . . . . . Scanalyzers . | . . . . . Garrison Access . | . . . . . Total Hacks 13 | . . 5 . 8 Successful 5 | . . 2 . 3 Failed 8 | . . 3 . 5 Catastrophic 3 | . . 2 . 1 Database Lockouts . | . . . . . Manual 13 | . . 5 . 8 Terminals 13 | . . 5 . 8 Fabricators . | . . . . . Repair Stations . | . . . . . Recycling Units . | . . . . . Scanalyzers . | . . . . . Garrison Access . | . . . . . Terminal Hacks 4 | . . 2 . 2 Zone Layout 4 | . . 2 . 2 Fabricator Hacks . | . . . . . Repair Station Hacks . | . . . . . Recycling Unit Hacks . | . . . . . Scanalyzer . | . . . . . Garrison Access Hacks . | . . . . . Unauthorized Hacks 1 | . . . . 1 Terminals 1 | . . . . 1 Botnet 1 | . . . . 1 Fabricators . | . . . . . Repair Stations . | . . . . . Recycling Units . | . . . . . Scanalyzers . | . . . . . Garrison Access . | . . . . . Data Cores Recovered . | . . . . . Used . | . . . . . Hacking Detections 4 | . . 1 . 3 Full Trace Events 1 | . . 1 . . Feedback Events . | . . . . . Feedback Blocked . | . . . . . Robot Schematics Acquired . | . . . . . Robots Built . | . . . . . Authchips . | . . . . . Time . | . . . . . Total Robot Build Rating . | . . . . . Part Schematics Acquired . | . . . . . Parts Built . | . . . . . Authchips . | . . . . . Time . | . . . . . Total Part Build Rating . | . . . . . Parts Repaired . | . . . . . Time . | . . . . . Parts Recycled . | . . . . . Recycled Matter . | . . . . . Retrieved Matter . | . . . . . Retrieved Components . | . . . . . Parts Scanalyzed . | . . . . . Part Schematics Acquired . | . . . . . Parts Damaged . | . . . . . Bothacking | -11 -10 -9 -8 -8 ------------ Run | Yrd Mat Mat Mat Sto Used RIF Installer . | . . . . . Robots Hacked . | . . . . . Non-combat . | . . . . . Combat . | . . . . . Robot Hacks Applied . | . . . . . Relay Couplers Released . | . . . . . Fabnet Peak Effective % . | . . . . . Robots Rewired . | . . . . . Allies Hacked . | . . . . . Hacks Repelled . | . . . . . Allies | -11 -10 -9 -8 -8 -------- Run | Yrd Mat Mat Mat Sto Total Allies 10 | . . . . 10 Largest Group 10 | . . . . 10 Highest-Rated Group 173 | . . . . 173 Highest-Rated Ally 29 | . . . . 29 Total Orders . | . . . . . Ally Attacks 32 | . . . . 32 Total Damage 373 | . . . . 373 Kills 4 | . . . . 4 Allies Corrupted . | . . . . . Allies Melted . | . . . . . Intel | -11 -10 -9 -8 -8 ------- Run | Yrd Mat Mat Mat Sto Active Infowar (turns) 103 | . 103 . . . ECM 103 | . 103 . . . Robot Analysis Total . | . . . . . Derelict Logs Recovered . | . . . . . Drone Launches . | . . . . . Drone Recoveries . | . . . . . Exploration | -11 -10 -9 -8 -8 ------------- Run | Yrd Mat Mat Mat Sto Turns Passed 304 | 5 126 73 20 80 Spaces Moved 385 | 1 129 108 26 121 Core 385 | 1 129 108 26 121 Treads . | . . . . . Legs . | . . . . . Wheels . | . . . . . Hover . | . . . . . Flight . | . . . . . Fastest Speed 50 | 50 50 50 50 50 Average Speed 63 | 50 89 50 50 50 Slowest Speed 100 | 50 100 50 50 50 Overloaded Moves . | . . . . . Propulsion Burnouts . | . . . . . Robots Hopped . | . . . . . Potential Cave-ins 2 | . . . . 2 Cave-ins Triggered . | . . . . . Exploration Rate (%) 18 | 2 37 15 4 34 Regions Visited 4 Branch Regions 1 Pre-discovered Areas . | . . . . . Known Exits Taken . | . . . . . Unknown Exits Taken 4 | 1 1 1 1 . Scrap Searched . | . . . . . Spaces Dug . | . . . . . Terrain Destroyed . | . . . . . Melee . | . . . . . Projectile . | . . . . . AOE . | . . . . . Terrain Rammed . | . . . . . Walls Destroyed . | . . . . . Machines Disabled . | . . . . . Actions | -11 -10 -9 -8 -8 --------- Run | Yrd Mat Mat Mat Sto Total 446 | 9 139 126 32 140 Wait 38 | . 8 19 6 5 Move 381 | . 128 107 25 121 Hop . | . . . . . Pick Up 2 | . 1 . . 1 Fast Attach . | . . . . . Attach 3 | . 1 . 1 1 Detach 2 | 1 1 . . . Swap . | . . . . . Drop 8 | 8 . . . . Fire . | . . . . . Melee . | . . . . . Ram 2 | . . . . 2 Kick . | . . . . . Crush . | . . . . . Escape Stasis 4 | . . . . 4 Rewire 6 | . . . . 6 Trap . | . . . . . Miscellaneous . | . . . . . Route ------- -11/Scrapyard -10/Materials -9/Materials -8/Materials -8/Storage History --------- Turn | Location | Event 6 | -11/Scrapyard | Discovered new exit (range 0) 6 | -11/Scrapyard | Entered Materials 131 | -10/Materials | Discovered new exit (range 3) 132 | -10/Materials | Entered another Materials area 132 | -9/Materials | Evolved 2 slots: Utility x2 197 | -9/Materials | Core integrity fell below 50% 198 | -9/Materials | Discovered new exit (range 15) 205 | -9/Materials | Entered another Materials area 205 | -8/Materials | Evolved 2 slots: Utility x2 210 | -8/Materials | Discovered new exit (range 14) 225 | -8/Materials | Entered Storage 243 | -8/Storage | Assembled infested ambush trap array 271 | -8/Storage | Assisted by bots powering up and referring to "LRC-V3" 297 | -8/Storage | Core integrity fell below 50% 300 | -8/Storage | Core integrity fell below 20% 305 | -8/Storage | Destroyed by Y-45 Defender with Beam Rifle Last Messages --------------- 00277_ Triggered Stasis Trap. 00277_ A bubble of rippling energy engulfs the area. 00277_ Field strength at 94. 00277_ Field strength at 88. 00278_ C-30 ARC bursts open, deploying its payload. 00278_ D-53 Grenadier unfolds itself. 00278_ Field strength at 82. 00279_ Field strength at 76. 00279_ Transfer Shaft disabled. 00280_ The unstable cave ceiling collapses. 00280_ Field strength at 70. 00285_ Transfer Shaft disabled. 00294_ The unstable cave ceiling collapses. 00295_ M-13 Machinist repairs U-05 Engineer Lgt. Ion Engine. 00299_ The unstable cave ceiling collapses. 00300_ W-25 Informer sends out distress signal. 00301_ The unstable cave ceiling collapses. 00303_ U-05 Engineer lays Concrete. 00304_ M-13 Machinist repairs U-05 Engineer Wheel. 00304_ U-05 Engineer lays Concrete. Map ----- +----------------------------------------------------+ | ?????????????????????????" ###"##?????????? | | ?????????????????????????" ### ##?????????? | | ?????????????????????????" ######?????????? | | ?????????????????????????"" ######?????????? | | ????????????????????????? " #??????????????? | | ?????????????????????????"" #????????####### | | ????????????????????????? #????????# # | | ?????????????????????????####????????# # | | ???????????????????? ????????????????# T# | | ???????????????????# ??????#######???## ## | | ???????????????????+ ####### T ########/## | | ???????????????????# !!! | | ???????????????????# !] | | ???????????????????# !] | | ???????????????????# ###### ## | | ???????????????????# # ####/#? | | ???????????????????# d #? | | ???????????????????# "" m """ #? | | ???????????????????# """ u # """ #? | | ???????????????????# " # """ #? | | ?????????????????### #? | | ?????????????????+ #? | | ?????????????????# % #? | | ?????????????????# w ! #? | | ?????????????????# ##### #+###### | | ?????????????????# @ # ####### | | ?????????????????# ### # | | ?????????????????#a #?# """ # | | ?????????????????+ #?# "Y" ############# | | ?????????????????# #?# #???????????? | | ?????????????????# #?# #???????????? | | ?????????????????# #?# #???????????? | | ?????????????????# #?# #???????????? | | ?????????????????# #? //! #???????????? | | ?????????????????# #?#//! #???????????? | | ?????????????????# #?#//! ????????????? | | ?????????????????# #?# ?????????????? | | ????????????????? ??###+##?????????????? | | ????????????????? Y ?????????????????????? | | ????????????????? ?????????????????????? | | ????????????????? ?????????????????????? | | ???????????????????????????????????????????? | | ???????????????????????????????????????????? | | ???????????????????????????????????????????? | | ???????????????????????????????????????????? | | ???????????????????????????????????????????? | | ???????????????????????????????????????????? | | ???????????????????????????????????????????? | | ???????????????????????????????????????????? | | ???????????????????????????????????????????? | +----------------------------------------------------+ Best States ------------- Heat Dissipation 31 Energy Generation 10 Energy Capacity 125 Matter Stores 300 Matter Capacity 300 Sight Range 16 Terrain Scan Density 10 ECM Strength 1 Evasion (%) 50 Defensive Hacking 10 Item Schematics ----------------- None Robot Schematics ------------------ None Fabricated ------------ Nothing Repaired ---------- Nothing Alien Tech Used ----------------- None Achievements -------------- None Challenges ------------ None Game ------ Seed CloakGaussFocus Manual? 0 Play Time 00:08:55 Cumulative 116.8 hours Start 2025.06.20 @ 03:09:57 End 2025.06.20 @ 03:23:23 Sessions 1 Manual Loads 0 Difficulty Rogue Special Mode None Game No. 141 Rogue 126 Adventurer 15 Explorer 0 Win Type - Total 3 Types 2/0/1/0/0/0/0/0/0/0 Lore% 38 Gallery% 60 Achievement% 54 Wizard Run 0 Options --------- Layout 0 ASCII 0 Keyboard 0 Movement Mouse Keybinds 0 Fullscreen 2 Font 36/Smallcaps Map View 76x50 Zoom Use 0% Tactical HUD 1 Map Filters NONE Filters NONE Steam 1 RUN: 7053c5a8-e6be-4fe2-8fc9-df0ed3eea4f3